bitfinex-derivatives/quotes_ETHF0:USTF0_20251021
["timestamp","ask_amount","ask_price","bid_price","bid_amount"]
[1761020938152,0.32472103,3876.0,3875.9,0.3218]
[1761020939256,0.00322103,3876.0,3875.9,0.3218]
[1761020942458,12.738613,3877.3,3875.9,0.3218]
[1761020942459,0.89228861,3877.3,3876.1,0.3435]
[1761020942660,0.59458081,3877.2,3876.9,0.3435]
[1761020942864,0.59458081,3877.1,3876.7,0.3435]
[1761020943163,0.46416,3877.2,3876.8,0.3435]
[1761020943358,0.59436228,3877.1,3876.9,0.3435]
[1761020943566,0.00267805,3877.2,3876.9,0.3435]
[1761020943754,0.00267805,3877.2,3876.7,0.3435]
[1761020943954,0.00267805,3877.2,3877.0,0.3435]
[1761020944160,0.46417,3877.1,3877.0,0.3435]
[1761020944667,0.32417805,3877.2,3877.0,0.3435]
[1761020945365,0.00267805,3877.2,3877.1,0.46417]
[1761020945563,0.022,3877.8,3877.7,0.3435]
[1761020945968,22.67869568,3879.3,3877.7,0.3435]
[1761020945969,0.3215,3878.8,3877.7,5.0]
[1761020946170,0.3215,3878.8,3878.2,0.46403]
[1761020946468,0.00248439,3878.8,3878.3,0.80752]
[1761020946668,0.32398439,3878.8,3878.5,0.3435]
[1761020947070,0.32398439,3878.8,3878.2,0.00288642]
[1761020947270,0.32398439,3878.8,3878.3,0.3435]
[1761020947969,0.78795439,3878.8,3878.3,0.3435]
[1761020948270,0.3215,3878.6,3878.3,0.3435]
[1761020949572,0.00248439,3878.8,3878.3,0.3435]
[1761020949758,0.00248439,3878.8,3878.7,0.46398]
[1761020949962,0.3215,3879.6,3878.3,0.3435]
[1761020950157,0.1287,3880.5,3879.0,0.1281]
[1761020950369,0.3215,3880.4,3879.7,0.3435]
[1761020950763,0.78528,3880.4,3879.7,0.3435]
[1761020950967,0.78738576,3880.4,3879.7,0.3435]
[1761020951166,0.46379,3880.3,3879.7,0.3435]
[1761020951567,0.3215,3880.1,3879.7,0.3435]
[1761020951969,0.00210576,3880.4,3879.7,0.80735]
[1761020952165,0.00210576,3880.4,3879.8,0.3435]
[1761020952366,0.00210576,3880.4,3879.9,0.46383]
[1761020952664,0.00210576,3880.4,3879.6,0.1281]
[1761020952665,0.00210576,3880.4,3880.3,0.3435]
[1761020956369,0.80118576,3880.4,3879.7,0.3308]
[1761020956769,0.4638,3880.2,3879.7,0.3308]
[1761020957075,0.80118576,3880.4,3879.7,0.3308]
[1761020958072,0.3353,3879.8,3879.1,0.3308]
[1761020958375,0.3353,3879.4,3879.1,0.3308]
[1761020958572,0.4639,3879.4,3879.1,0.3308]
[1761020958777,0.1319,3880.2,3879.1,0.3308]
[1761020958778,0.46387,3879.6,3879.1,0.3308]
[1761020958989,0.46389,3879.5,3879.1,0.3308]
[1761020959171,0.3353,3879.3,3879.1,0.3308]
[1761020959367,0.79921,3879.3,3879.1,0.3308]
[1761020959577,0.3353,3880.0,3879.1,0.3308]
[1761020959976,0.3353,3879.5,3879.1,0.3308]
[1761020960176,0.3353,3879.4,3879.1,0.3308]
[1761020960376,0.7992,3879.4,3879.1,0.3308]
[1761020961174,0.46389,3879.5,3879.1,0.3308]
[1761020961778,0.4639,3879.4,3879.1,0.3308]
[1761020962279,0.3353,3879.2,3879.1,0.3308]
[1761020962475,0.46391,3879.3,3879.1,0.3308]
[1761020962674,0.46389,3879.5,3879.1,0.3308]
[1761020962981,0.79923,3879.1,3878.6,0.3308]
[1761020963174,0.7992,3879.4,3878.6,0.3308]
[1761020963368,0.46391,3879.3,3878.6,0.3308]
[1761020963570,0.46391,3879.3,3878.7,0.3308]
[1761020963879,0.3353,3879.4,3878.8,0.3308]
[1761020964270,0.3353,3879.9,3879.1,0.3308]
[1761020964472,0.46384,3879.9,3879.2,0.3308]
[1761020964781,0.46382,3880.0,3879.4,0.3308]
[1761020965269,0.46383,3879.9,3879.4,0.3308]
[1761020966175,0.46388,3879.6,3879.4,0.3308]
[1761020966486,0.3353,3879.5,3879.1,0.3308]
[1761020966679,0.3353,3879.4,3879.1,0.3308]
[1761020967069,0.79919,3879.4,3879.1,0.3308]
[1761020967271,0.3353,3879.2,3879.1,0.3308]
[1761020967471,0.1319,3880.2,3879.1,0.3308]
[1761020967472,0.3353,3879.4,3879.1,0.3308]
[1761020967676,0.46399,3878.6,3878.4,0.3442]
[1761020967980,0.79764,3879.0,3878.5,0.3442]
[1761020968176,0.46396,3878.9,3878.5,0.3442]
[1761020968379,0.3337,3878.7,3878.5,0.3442]
[1761020968579,0.3337,3879.0,3878.5,0.3442]
[1761020968883,0.3337,3878.7,3878.5,0.3442]
[1761020969179,0.46399,3878.6,3878.5,0.3442]
[1761020969374,0.3337,3878.7,3878.5,0.3442]
[1761020969580,0.3337,3878.6,3878.5,0.3442]
[1761020969776,0.3337,3878.8,3878.5,0.3442]
[1761020969982,0.46396,3878.9,3878.5,0.3442]
[1761020970182,0.46395,3879.0,3878.5,0.3442]
[1761020970375,0.3337,3879.0,3878.5,0.3442]
[1761020970982,0.3337,3879.5,3878.5,0.3442]
[1761020971181,0.46395,3878.9,3878.5,0.3442]
[1761020971876,0.46398,3878.7,3878.5,0.3442]
[1761020972079,0.3337,3878.6,3878.5,0.3442]
[1761020972282,0.3337,3878.6,3878.3,0.3442]
[1761020972283,0.3337,3878.5,3878.3,0.3442]
[1761020972779,0.7977,3878.5,3878.3,0.3442]
[1761020972979,0.464,3878.5,3878.3,0.3442]
[1761020973586,0.46399,3878.6,3878.3,0.3442]
[1761020973883,0.464,3878.5,3878.3,0.3442]
[1761020974186,0.3337,3878.4,3878.3,0.3442]
[1761020974686,0.464,3878.5,3878.3,0.3442]
[1761020975290,0.2117,3878.4,3878.3,0.5573]
[1761020975579,0.2117,3878.4,3878.2,0.00288642]
[1761020975580,0.90359,3878.6,3878.5,0.7744]
[1761020975784,1.23729,3878.6,3878.5,0.7744]
[1761020977081,0.90359,3878.6,3878.5,0.7744]
[1761020977275,0.4396,3878.3,3878.2,0.00288642]
[1761020977480,1.23733,3878.3,3878.2,0.00288642]
[1761020979790,0.7733,3878.3,3878.2,0.00288642]
[1761020979981,0.7733,3878.3,3878.2,0.56018642]
[1761020980180,0.67568,3878.7,3878.6,0.7744]
[1761020980383,0.7733,3878.7,3878.6,0.7744]
[1761020980583,0.4396,3878.7,3878.6,0.7744]
[1761020980785,0.7733,3878.7,3878.6,0.7744]
[1761020982090,0.4396,3878.7,3878.6,0.7744]
[1761020982691,0.46392,3879.2,3878.9,0.3442]
[1761020982888,1.23722,3879.2,3879.1,0.7744]
[1761020983281,1.23722,3879.2,3879.1,0.5573]
[1761020983995,0.46402,3878.3,3878.2,0.00288642]
[1761020984291,0.7733,3878.3,3878.2,0.56018642]
[1761020984494,0.2117,3878.3,3878.2,0.77728642]
[1761020985089,0.46401,3878.4,3878.3,0.3442]
[1761020985392,0.46401,3878.4,3878.3,0.7744]
[1761020985686,0.2117,3878.4,3878.3,0.7744]
[1761020985889,0.2117,3879.0,3878.9,0.7744]
[1761020986088,1.82899446,3879.0,3878.9,0.7744]
[1761020986293,1.82899446,3879.0,3878.9,0.5573]
[1761020986488,1.03135446,3879.0,3878.9,0.7744]
[1761020986688,1.03135446,3879.0,3878.6,0.2131]
[1761020986689,0.3337,3878.9,3878.6,0.2131]
[1761020986889,0.95339018,3879.0,3878.2,0.46691642]
[1761020986890,0.3337,3878.6,3878.3,0.3442]
[1761020987095,0.5454,3878.6,3878.5,0.2131]
[1761020987295,0.5454,3878.6,3878.5,0.5573]
[1761020987496,0.2117,3878.6,3878.5,0.7744]
[1761020987788,0.2117,3878.3,3878.2,0.56018642]
[1761020987993,0.46402,3878.4,3878.3,0.3442]
[1761020988195,0.46402,3878.4,3878.3,0.7744]
[1761020988390,0.67572,3878.4,3878.3,0.7744]
[1761020989198,1.23732,3878.4,3878.3,0.5573]
[1761020989702,0.90362,3878.4,3878.3,0.7744]
[1761020990497,0.3337,3878.7,3878.3,0.7744]
[1761020990694,1.00938,3878.7,3878.6,0.4302]
[1761020990887,0.5454,3878.7,3878.6,0.7744]
[1761020991091,0.2117,3879.1,3879.0,0.9077]
[1761020991391,0.80466802,3879.1,3879.0,0.9077]
[1761020991988,0.3337,3878.9,3878.7,0.2131]
[1761020992197,0.2117,3878.8,3878.7,0.4302]
[1761020992591,0.2117,3878.8,3878.7,0.7744]
[1761020994092,0.2117,3878.7,3878.6,0.5573]
[1761020994497,0.2117,3878.7,3878.6,0.7744]
[1761020995188,0.67568,3878.7,3878.6,0.7744]
[1761020995590,1.23728,3878.7,3878.6,0.7744]
[1761020996390,1.23728,3878.7,3878.6,0.5573]
[1761021000107,0.67568,3878.7,3878.6,0.7744]
[1761021000404,0.88798,3878.7,3878.6,0.7744]
[1761021001195,0.5588,3878.3,3878.2,0.00288642]
[1761021001398,1.23342,3878.3,3878.2,0.00288642]
[1761021001594,1.23342,3878.3,3878.2,0.54608642]
[1761021001795,0.46401,3878.4,3878.3,0.3213]
[1761021002106,1.23342,3878.3,3878.2,0.00288642]
[1761021002303,1.82711291,3878.3,3878.2,0.00288642]
[1761021002506,0.5571,3877.8,3877.4,0.3213]
[1761021002803,0.7694,3877.6,3877.5,0.5432]
[1761021002999,0.2106,3877.2,3877.1,0.4499]
[1761021003497,0.42613892,3877.2,3877.1,0.7733794]
[1761021003701,0.77263892,3877.2,3877.1,0.7733794]
[1761021003901,0.5571,3878.3,3877.1,5.4520794]
[1761021004098,1.35623861,3879.0,3878.6,0.3213]
[1761021004304,0.46395,3879.0,3878.6,0.3213]
[1761021004506,0.46395,3878.9,3878.6,0.3213]
[1761021004797,0.1287,3879.5,3878.6,0.3213]
[1761021005004,0.3465,3879.3,3878.6,0.3213]
[1761021005202,0.3465,3879.1,3878.6,0.3213]
[1761021005398,0.46396,3878.9,3878.6,0.3213]
[1761021005606,0.3465,3878.8,3878.6,0.3213]
[1761021005906,0.3465,3878.4,3878.1,0.3213]
[1761021006401,0.3465,3878.3,3878.1,0.3213]
[1761021006601,0.3465,3878.5,3878.1,0.3213]
[1761021006802,3.92555397,3879.1,3878.5,0.3213]
[1761021006803,0.3465,3879.1,3878.5,0.3213]
[1761021007004,0.5937465,3879.0,3878.5,0.3213]
[1761021007203,0.46394,3879.0,3878.5,0.3213]
[1761021007400,0.46395,3878.9,3878.5,0.3213]
[1761021007901,0.3465,3879.3,3878.5,0.3213]
[1761021008103,0.46398,3878.7,3878.5,0.3213]
[1761021008509,0.81048,3878.7,3878.5,0.3213]
[1761021008709,0.46398,3878.7,3878.5,0.3213]
[1761021009605,0.3465,3878.6,3878.5,0.3213]
[1761021009809,0.3465,3878.4,3878.1,0.3213]
[1761021010207,0.46399,3878.6,3878.1,0.3213]
[1761021010807,0.3465,3878.5,3878.1,0.3213]
[1761021011107,0.46408,3877.9,3877.6,0.3213]
[1761021011301,0.46403,3878.3,3877.6,0.3213]
[1761021011505,0.46405,3878.1,3877.7,0.3213]
[1761021011703,0.3465,3878.1,3877.7,0.3213]
[1761021011913,0.46407,3877.9,3877.7,0.3213]
[1761021012214,0.46408,3877.9,3877.6,0.3213]
[1761021012417,0.81055,3878.1,3877.6,0.3213]
[1761021012718,0.46406,3878.0,3877.6,0.3213]
[1761021012908,0.46407,3877.9,3877.6,0.3213]
[1761021013915,0.81055,3878.1,3877.7,0.3213]
[1761021014121,0.46405,3878.1,3877.7,0.3213]
[1761021014317,0.4641,3877.7,3877.2,0.3213]
[1761021014520,0.3465,3877.6,3877.2,0.3213]
[1761021014822,0.46409,3877.8,3877.2,0.3213]
[1761021015319,0.81057,3878.0,3877.2,0.3213]
[1761021015723,0.3465,3878.0,3877.3,0.3213]
[1761021015923,0.81057,3878.0,3877.4,0.3213]
[1761021016123,0.3465,3878.2,3877.4,0.3213]
[1761021016420,0.46412,3877.5,3877.1,0.3277794]
[1761021016824,0.79064,3877.3,3877.1,0.3277794]
[1761021017218,0.46412,3877.5,3877.1,0.3277794]
[1761021017522,0.4549,3877.8,3877.1,0.3277794]
[1761021017523,0.3265,3877.8,3877.1,0.3277794]
[1761021017717,0.3265,3877.8,3877.3,0.46414]
[1761021017912,0.3265,3877.7,3877.1,0.0021794]
[1761021018112,0.3265,3877.2,3877.1,0.0021794]
[1761021018326,0.3265,3877.2,3877.1,0.3277794]
[1761021019116,0.3265,3877.2,3877.1,0.0021794]
[1761021020526,5.3265,3877.2,3877.1,0.0021794]
[1761021020727,0.46433,3875.8,3875.6,1.628]
[1761021020935,0.1284,3876.0,3875.1,2.15376455]
[1761021020936,3.92555397,3875.7,3875.1,0.3256]
[1761021021116,9.454,3875.9,3874.8,0.1354]
[1761021021117,0.46443,3874.9,3874.8,0.1354]
[1761021021429,0.4645,3874.4,3873.6,0.34494962]
[1761021021725,0.46701432,3874.4,3874.0,0.13849528]
[1761021022224,0.46453,3874.1,3874.0,0.13849528]
[1761021022421,0.46702432,3874.4,3874.0,0.13849528]
[1761021022627,0.46453,3874.2,3874.0,0.13849528]
[1761021023033,0.46453,3874.2,3874.1,0.3256]
[1761021027623,0.00252432,3874.4,3874.1,0.3256]
[1761021029921,0.00252432,3874.4,3874.0,0.13849528]
[1761021029922,3.92555397,3874.2,3874.0,0.13849528]
[1761021030130,0.46464,3873.2,3873.0,0.1354]
[1761021030333,0.46471,3872.6,3871.8,0.1303]
[1761021030629,9.459,3873.2,3872.4,0.1303]
[1761021031026,9.459,3873.2,3872.4,0.13313183]
[1761021031227,0.46458,3873.7,3872.5,0.46472]
[1761021031540,0.4646,3873.5,3872.4,0.13313183]
[1761021031825,3.92555397,3873.8,3872.4,0.13313183]
[1761021031826,0.46462,3873.3,3872.4,0.13313183]
[1761021032026,0.46462,3873.3,3872.5,0.3147]
[1761021032631,0.46459,3873.6,3872.5,0.3147]
[1761021032826,0.46461,3873.4,3872.5,0.3147]
[1761021033026,3.92555397,3873.8,3872.5,0.3147]
[1761021033229,0.46464,3873.1,3872.5,0.3147]
[1761021033638,0.46467,3873.0,3872.5,0.3147]
[1761021033833,0.46471,3872.6,3872.5,0.3147]
[1761021034033,0.46467,3872.9,3872.5,0.3147]
[1761021034231,3.92555397,3873.2,3872.5,0.3147]
[1761021034536,0.46469,3872.7,3872.5,0.3147]
[1761021034939,0.46467,3873.0,3872.5,0.3147]
[1761021035147,0.46469,3872.7,3872.5,0.3147]
[1761021035327,3.92555397,3873.2,3872.5,0.3147]
[1761021035525,0.46464,3873.1,3872.5,0.3147]
[1761021035836,0.46469,3872.7,3872.5,0.3147]
[1761021036137,9.46,3873.0,3871.8,0.1303]
[1761021036138,3.92555397,3872.6,3871.8,0.1303]
[1761021036436,3.92555397,3871.9,3871.8,0.1303]
[1761021036936,8.92555397,3871.9,3871.8,0.1303]
[1761021037328,0.46486,3871.3,3870.3,0.1303]
[1761021037637,3.92555397,3871.3,3870.3,0.1303]
[1761021037838,0.46484,3871.6,3870.3,0.1303]
[1761021038041,13.85235397,3871.9,3870.3,0.1303]
[1761021038227,0.46482,3871.7,3871.3,0.3147]
[1761021038429,0.00325892,3871.7,3871.3,0.31769741]
[1761021038831,0.00325892,3871.7,3871.4,0.3147]
[1761021039137,0.00325892,3871.7,3871.6,0.3147]
[1761021041943,5.00325892,3871.7,3871.6,0.3147]
[1761021042438,0.00325892,3871.7,3871.6,0.3147]
[1761021044134,0.6559543,3871.7,3871.6,0.3147]
[1761021044341,0.00325892,3871.7,3871.6,0.3147]
[1761021045440,0.46485,3871.4,3870.3,0.1303]
[1761021045742,0.46485,3871.4,3871.3,0.3147]
[1761021045935,9.92885,3871.4,3871.3,0.3147]
[1761021046237,15.58200829,3871.4,3871.3,0.3147]
[1761021046443,0.46497,3870.4,3870.3,0.1303]
[1761021046843,0.46497,3870.4,3870.3,0.13352765]
[1761021047742,5.27560452,3871.1,3871.0,0.1303]
[1761021047930,0.65423212,3871.1,3871.0,0.1303]
[1761021048330,0.65423212,3871.2,3871.0,0.1303]
[1761021048533,0.65423212,3871.1,3871.0,0.1303]
[1761021048934,1.53940267,3871.6,3871.0,0.1303]
[1761021049136,0.88517055,3871.4,3871.0,0.1303]
[1761021049549,0.46486,3871.3,3871.1,0.3147]
[1761021049845,0.65423212,3871.2,3871.1,0.3147]
[1761021050039,0.88517055,3871.2,3871.1,0.3147]
[1761021050240,0.65423212,3871.2,3871.1,0.3147]
[1761021051444,2.43516895,3871.2,3871.1,0.3147]
[1761021052448,11.92316895,3871.2,3871.1,0.3147]
[1761021053439,11.92334752,3871.2,3871.1,0.3147]
[1761021053649,10.14223212,3871.2,3871.1,0.3147]
[1761021053944,0.65423212,3871.2,3871.1,0.3147]
[1761021054550,1.99058217,3871.2,3871.1,5.3147]
[1761021054750,1.7811154,3871.9,3871.8,0.4648]
[1761021055054,1.7811154,3872.7,3872.5,0.3147]
[1761021055250,0.4647,3872.7,3872.5,0.3147]
[1761021055445,9.489,3872.9,3872.5,0.3147]
[1761021055446,9.95367,3872.9,3872.5,0.3147]
[1761021055755,0.8915982,3872.6,3872.5,0.77941]
[1761021056047,0.8915982,3872.7,3872.6,0.3147]
[1761021056253,0.46469,3872.8,3872.6,0.3147]
[1761021056452,0.46685728,3872.9,3872.6,0.3147]
[1761021056948,0.46468,3872.8,3872.6,0.3147]
[1761021057158,0.00218728,3872.9,3872.6,0.3147]
[1761021057348,0.89232888,3872.7,3872.6,0.3147]
[1761021057855,1.35701888,3872.7,3872.6,0.3147]
[1761021058152,0.46469,3872.7,3872.6,0.3147]
[1761021058545,0.89278923,3872.7,3872.6,0.3147]
[1761021058744,0.89278923,3872.8,3872.7,0.46469]
[1761021058949,0.00218728,3872.9,3872.8,0.3153]
[1761021059754,1.35964651,3872.9,3872.8,0.3153]
[1761021059952,0.46685728,3872.9,3872.8,0.3153]
[1761021060458,0.46472,3872.5,3872.4,0.1303]
[1761021060647,0.46476,3872.2,3871.7,0.1332]
[1761021060949,0.89359834,3871.8,3871.7,0.4485]
[1761021061158,0.89359834,3871.8,3867.2,2.28790827]
[1761021061159,2.585,3870.4,3867.2,2.28790827]
[1761021061351,4.61494972,3869.0,3867.9,0.3153]
[1761021061656,0.8934319,3868.2,3867.9,0.3153]
[1761021061847,0.8934319,3868.1,3867.9,0.3153]
[1761021062245,0.00211131,3868.1,3867.9,0.3183618]
[1761021062452,0.00211131,3868.1,3866.8,0.1332]
[1761021062453,0.3401,3867.9,3866.8,0.1332]
[1761021062854,0.46528,3867.8,3866.8,0.1332]
[1761021063055,0.80538,3867.8,3866.8,0.1332]
[1761021063553,0.3401,3867.8,3866.8,0.13603561]
[1761021063950,0.3401,3867.8,3866.8,0.00283561]
[1761021063951,0.3401,3867.0,3866.8,0.00283561]
[1761021064147,0.3401,3867.1,3866.8,0.00283561]
[1761021064352,0.8934319,3867.5,3866.8,0.46823561]
[1761021064654,0.3401,3867.7,3866.9,0.3153]
[1761021065055,0.8934319,3867.8,3866.9,0.3153]
[1761021065252,0.46528,3867.8,3866.9,0.3153]
[1761021065452,0.3401,3867.5,3866.8,0.00283561]
[1761021065757,0.8934319,3867.7,3866.8,0.31813561]
[1761021066058,0.34221131,3868.1,3867.5,0.3153]
[1761021066253,0.80745131,3868.1,3867.2,0.1332]
[1761021066454,0.80745131,3868.1,3867.3,0.3153]
[1761021066455,0.80746131,3868.1,3867.3,0.3153]
[1761021066660,0.3401,3867.7,3866.8,0.31813561]
[1761021066860,0.63496079,3868.0,3866.8,0.31813561]
[1761021066861,0.97506079,3867.6,3866.8,0.31813561]
[1761021067057,5.42241103,3868.1,3866.9,0.3153]
[1761021067255,0.3401,3867.8,3866.8,0.31813561]
[1761021067457,0.3401,3867.3,3866.8,0.00283561]
[1761021067768,10.70457308,3867.2,3866.8,0.00283561]
[1761021067945,0.3401,3867.0,3866.8,0.00283561]
[1761021068150,0.3401,3866.8,3865.6,0.74779058]
[1761021068363,5.0,3867.1,3865.7,0.3153]
[1761021068364,0.3401,3866.5,3865.7,0.3153]
[1761021068661,0.80554,3866.5,3865.7,0.3153]
[1761021068860,0.3401,3866.5,3865.7,0.3153]
[1761021069160,0.80555,3866.5,3865.7,0.31800989]
[1761021069455,0.1134,3867.2,3865.7,0.31800989]
[1761021069456,0.3401,3867.0,3865.8,0.3153]
[1761021069655,9.722,3867.2,3866.1,0.3153]
[1761021069860,0.80548,3867.0,3866.1,0.3153]
[1761021070063,0.3401,3867.0,3866.2,0.3153]
[1761021070256,5.51049293,3868.1,3867.3,0.46534]
[1761021070460,0.63263053,3868.0,3867.6,0.4653]
[1761021070658,4.61706103,3868.1,3867.7,0.3153]
[1761021071062,5.08231103,3868.1,3867.7,0.3153]
[1761021071254,0.46534,3867.3,3866.9,0.3153]
[1761021071568,0.3401,3867.1,3866.4,0.3153]
[1761021071760,0.80549,3866.9,3866.0,0.3153]
[1761021072065,0.46542,3866.7,3866.0,0.3153]
[1761021072261,0.3401,3867.4,3866.1,0.46548]
[1761021072463,14.33994972,3867.7,3865.8,1.47908]
[1761021072658,14.33994972,3867.7,3864.8,3.2782]
[1761021072659,0.3401,3867.5,3866.1,0.3153]
[1761021072855,0.46535,3867.3,3865.8,3.39998412]
[1761021073056,0.3401,3866.8,3865.9,0.3153]
[1761021073564,0.46541,3866.8,3865.9,0.3153]
[1761021073758,4.61494972,3867.1,3865.9,0.3153]
[1761021074063,0.46541,3866.8,3865.9,0.3153]
[1761021074269,0.3401,3867.0,3865.9,0.3153]
[1761021074856,0.3401,3867.0,3865.8,0.3153]
[1761021075057,0.3401,3867.0,3866.3,0.46546]
[1761021075358,0.46537,3867.1,3866.5,0.3153]
[1761021075557,5.08023972,3867.8,3866.7,0.3153]
[1761021075762,10.1121,3867.7,3866.7,0.3153]
[1761021075963,9.772,3867.7,3866.9,0.46538]
[1761021076164,9.772,3867.7,3867.0,0.78067]
[1761021076356,9.772,3867.7,3866.5,1.16358]
[1761021076561,9.772,3867.7,3867.3,0.319]
[1761021076862,0.3194,3867.3,3866.2,0.319]
[1761021077060,0.46535,3867.3,3866.2,0.319]
[1761021077267,5.08026972,3867.5,3866.2,0.319]
[1761021077456,5.08026972,3867.5,3866.4,0.46544]
[1761021077657,4.61494972,3867.5,3866.7,0.78441]
[1761021077860,4.61494972,3867.5,3866.8,0.319]
[1761021078070,5.08026972,3867.5,3866.8,0.319]
[1761021078365,0.00211131,3868.1,3866.7,0.319]
[1761021078566,0.3194,3867.8,3867.3,0.319]
[1761021078759,0.3194,3867.7,3866.9,0.319]
[1761021079062,4.61494972,3867.1,3866.5,0.319]
[1761021079261,0.3194,3866.9,3865.6,0.74779058]
[1761021079465,4.61494972,3866.2,3865.7,0.32170989]
[1761021079660,0.46546,3866.4,3865.7,0.32170989]
[1761021080057,0.46534,3867.4,3866.2,0.319]
[1761021080260,0.46545,3866.4,3865.7,0.32170989]
[1761021080567,0.3194,3867.0,3865.7,0.32170989]
[1761021080765,0.78484,3866.6,3865.7,0.32170989]
[1761021080966,9.822,3867.1,3865.8,0.319]
[1761021081167,0.3194,3867.0,3865.8,0.319]
[1761021081467,0.3194,3866.4,3865.8,0.319]
[1761021081670,0.46542,3866.7,3866.0,0.319]
[1761021081965,9.822,3867.1,3866.4,0.4498]
[1761021082169,9.822,3867.1,3866.5,0.319]
[1761021082360,0.3194,3866.6,3865.7,0.32170989]
[1761021082563,0.3194,3866.6,3865.8,0.46551]
[1761021082772,0.46542,3866.7,3865.8,0.46551]
[1761021082969,0.3194,3866.8,3865.9,0.319]
[1761021083172,10.28737,3867.1,3865.8,0.319]
[1761021083374,9.822,3867.1,3866.4,0.1308]
[1761021083562,9.822,3867.1,3866.5,0.319]
[1761021083973,10.28737,3867.1,3866.5,0.319]
[1761021084168,0.3194,3866.9,3866.5,0.319]
[1761021084868,9.811,3867.2,3866.5,0.319]
[1761021085067,0.3194,3867.1,3866.5,0.319]
[1761021085267,0.3194,3867.0,3865.7,0.00270989]
[1761021085468,0.46535,3867.2,3866.3,0.319]
[1761021085666,0.46535,3867.2,3866.5,0.319]
[1761021085867,0.3194,3867.1,3866.5,0.319]
[1761021086762,0.1136,3867.2,3866.0,0.319]
[1761021086964,0.46546,3866.3,3866.0,0.319]
[1761021087166,0.78486,3866.3,3866.0,0.319]
[1761021087368,0.46542,3866.7,3866.0,0.319]
[1761021087564,0.3194,3866.8,3866.1,0.46548]
[1761021087768,0.80563,3866.6,3866.2,0.333]
[1761021087976,0.80564,3866.5,3866.2,0.333]
[1761021088373,0.46545,3866.4,3866.2,0.333]
[1761021088671,0.46546,3866.3,3865.8,0.46551]
[1761021088870,0.80566,3866.3,3865.9,0.333]
[1761021089066,0.3402,3865.9,3865.7,0.00270989]
[1761021089372,0.6209059,3865.8,3865.7,0.33570989]
[1761021089572,0.6209059,3866.0,3865.7,0.33570989]
[1761021089877,1.0864059,3866.0,3865.7,0.33570989]
[1761021090075,0.6209059,3865.9,3865.8,0.333]
[1761021090367,0.46544,3866.5,3866.2,0.333]
[1761021090574,0.6208741,3866.4,3866.2,0.333]
[1761021090770,0.3402,3866.2,3865.9,0.333]
[1761021090974,0.3402,3866.0,3865.7,0.00270989]
[1761021091173,0.62081847,3865.9,3865.8,0.333]
[1761021091372,0.96101847,3866.3,3865.8,0.333]
[1761021091576,1.42648847,3866.2,3865.8,0.333]
[1761021091771,1.08630847,3866.1,3865.8,0.333]
[1761021091976,0.46551,3865.9,3865.8,0.333]
[1761021092175,0.46551,3865.9,3865.7,0.33570989]
[1761021092176,1.08632847,3865.9,3865.7,0.33570989]
[1761021092474,0.62081847,3865.8,3865.7,0.33570989]
[1761021093469,0.46548,3866.2,3865.7,0.33570989]
[1761021093669,0.62081847,3866.1,3865.8,0.333]
[1761021093976,0.62081847,3866.0,3865.8,0.333]
[1761021094275,0.46548,3866.2,3865.8,0.333]
[1761021094276,0.62081847,3865.9,3865.8,0.333]
[1761021094673,0.62081847,3865.9,3865.7,0.00270989]
[1761021094674,0.3402,3866.2,3866.0,0.333]
[1761021094978,0.62229237,3866.1,3866.0,0.333]
[1761021095877,0.3402,3866.6,3866.0,0.333]
[1761021095878,0.62229237,3866.3,3866.0,0.333]
[1761021096077,0.62229237,3866.2,3866.0,0.333]
[1761021096273,0.8934319,3866.5,3866.2,0.333]
[1761021096473,1.08795001,3866.4,3866.2,0.333]
[1761021096669,0.62250001,3866.3,3866.2,0.333]
[1761021097176,0.8934319,3866.8,3866.3,0.333]
[1761021097376,0.6227458,3866.7,3866.5,0.79843]
[1761021097677,0.8934319,3867.0,3866.9,0.333]
[1761021097980,0.62279247,3867.0,3866.9,0.333]
[1761021098585,0.62279247,3867.0,3866.9,5.333]
[1761021098777,0.8934319,3867.5,3867.3,0.46534]
[1761021099076,1.78916376,3867.9,3867.4,0.333]
[1761021099077,0.46531,3867.6,3867.4,0.333]
[1761021099272,0.62287724,3867.5,3867.4,0.333]
[1761021099674,1.51793913,3867.5,3867.4,0.333]
[1761021099874,0.3402,3867.9,3867.6,0.333]
[1761021099875,1.32389376,3867.9,3867.6,0.333]
[1761021100077,0.3402,3867.6,3867.2,0.333]
[1761021100481,1.68271212,3868.0,3867.2,0.333]
[1761021100776,0.3402,3868.0,3867.3,0.333]
[1761021101081,1.34462343,3868.1,3866.8,0.1331]
[1761021101082,0.00211131,3868.1,3867.7,0.333]
[1761021101283,0.00211131,3868.1,3867.9,0.333]
[1761021102981,0.3402,3867.6,3867.2,0.333]
[1761021103175,4.95726103,3868.1,3867.2,0.333]
[1761021103379,0.00211131,3868.1,3867.6,0.333]
[1761021103680,0.00211131,3868.1,3866.8,1.2966]
[1761021103681,0.3402,3868.0,3867.1,0.46536]
[1761021103875,0.46528,3867.9,3867.4,0.333]
[1761021104070,0.4653,3867.7,3867.4,0.333]
[1761021104373,0.8055,3867.7,3867.4,0.333]
[1761021104572,1.34251212,3867.8,3866.9,0.333]
[1761021104784,0.3402,3867.7,3866.9,0.333]
[1761021104978,0.46537,3867.1,3866.9,0.333]
[1761021105573,0.46542,3866.7,3866.5,0.333]
[1761021105783,0.46546,3866.4,3866.1,0.1331]
[1761021105985,0.3402,3866.7,3865.8,0.333]
[1761021106175,0.4655,3866.0,3865.8,0.333]
[1761021106570,0.8057,3866.0,3865.7,0.00270989]